Workbook

Sheet Лист1 (2)
A1: имт | B1: ln(ИМТ)
A2: 19.70553242 | B2: =LN(A2) -> 2.98089943 | F2: n | G2: =COUNT(A2:A88) -> 87 | H2: =COUNT(B2:B88) -> 87 | I2: или | K2: min | L2: =MIN(A2:A88) -> 15.57093426
A3: 17.99816345 | B3: =LN(A3) -> 2.890269722 | F3: x | G3: =AVERAGE(A2:A88) -> 21.11908625 | H3: =AVERAGE(B2:B88) -> 3.041866978 | I3: =AVERAGE(LN(A2:A88)) -> 3.041866978 | K3: max | L3: =MAX(A2:A88) -> 32.87197232
A4: 23.30668005 | B4: 3.148740017 | F4: s | G4: =STDEV(A2:A88) -> 2.83040653 | H4: =STDEV(B2:B88) -> 0.1279355551 | I4: =STDEV(LN(A2:A88)) -> 0.1279355551 | K4: n' | L4: =MIN(ROUND(SQRT(G2),0),20) -> 9
A5: 19.72318339 | B5: 2.981794766 | F5: D+ | G5: =MAX(RANK(A2:A88,A2:A88,1)/G2-NORMDIST(A2:A88,G3,G4,1)) -> 0.1020272798 | H5: =MAX(RANK(B2:B88,B2:B88,1)/H2-NORMDIST(B2:B88,H3,H4,1)) -> 0.07907802775
A6: 19.72103697 | B6: 2.981685932 | F6: D- | G6: =MAX(NORMDIST(A2:A88,G3,G4,1)-(RANK(A2:A88,A2:A88,1)-1)/G2) -> 0.06315718379 | H6: =MAX(NORMDIST(B2:B88,H3,H4,1)-(RANK(B2:B88,B2:B88,1)-1)/H2) -> 0.04573618751 | K6: =10^-99 -> 1e-99
A7: 18.28989483 | B7: 2.906348712 | F7: D | G7: =MAX(G5:G6) -> 0.1020272798 | H7: =MAX(H5:H6) -> 0.07907802775 | K7: =L2 -> 15.57093426 | L7: =COUNTIFS($A$2:$A$88,">"&K6,$A$2:$A$88,"<="&K7) -> 1 | M7: =(LOGNORMDIST(K7,$H$3,$H$4)-LOGNORMDIST(K6,$H$3,$H$4))*$G$2 -> 0.8912770537
A8: 23.183391 | B8: 3.143436117 | F8: Dcrit(0,95) | G8: =1.36/SQRT(G2) -> 0.1458073047 | H8: =1.36/SQRT(H2) -> 0.1458073047 | K8: =K7+($L$3-$L$2)/$L$4 -> 17.49327182 | L8: =COUNTIFS($A$2:$A$88,">"&K7,$A$2:$A$88,"<="&K8) -> 4 | M8: =(LOGNORMDIST(K8,$H$3,$H$4)-LOGNORMDIST(K7,$H$3,$H$4))*$G$2 -> 6.039246895
A9: 20.54988662 | B9: 3.022855424 | G9: ="нормальность "&IF(G7>G8,"не ","")&"подтверждена" -> нормальность подтверждена | H9: ="нормальность "&IF(H7>H8,"не ","")&"подтверждена" -> нормальность подтверждена | K9: =K8+($L$3-$L$2)/$L$4 -> 19.41560938 | L9: 18 | M9: 17.15018852
A10: 19.84126984 | B10: 2.987764104 | F10: p | G10: 0.304455 | H10: 0.619361 | K10: 21.33794694 | L10: 29 | M10: 24.45299482
A11: 24.02380867 | B11: 3.179045367 | K11: 23.26028451 | L11: 18 | M11: 20.5297056
A12: 19.53125 | B12: 2.972015747 | K12: 25.18262207 | L12: 12 | M12: 11.42312305
A13: 18.55677322 | B13: 2.920834856 | K13: 27.10495963 | L13: 0 | M13: 4.605734211
A14: 18.359375 | B14: 2.910140343 | K14: 29.02729719 | L14: 4 | M14: 1.440541351
A15: 21.62964876 | B15: 3.074065001 | K15: 30.94963476 | L15: 0 | M15: 0.3683932292
A16: 17.95918367 | B16: 2.888101609 | K16: 32.87197232 | L16: 1 | M16: 0.0802541393
A17: 21.14631991 | B17: 3.051465891
A18: 22.15910864 | B18: 3.098248637
A19: 21.87755102 | B19: 3.085461044
A20: 19.86851717 | B20: 2.989136427
A21: 20.65754 | B21: 3.028080386
A22: 23.046875 | B22: 3.137530185
A23: 21.97133586 | B23: 3.089738688
A24: 19.28937927 | B24: 2.959554647
A25: 20.2020202 | B25: 3.005782609
A26: 20.3125 | B26: 3.01123646
A27: 18.90203813 | B27: 2.939269754
A28: 22.65625 | B28: 3.120435752
A29: 16.65306122 | B29: 2.812594057
A30: 19.03114187 | B30: 2.946076683
A31: 15.57093426 | B31: 2.745405988
A32: 27.34375 | B32: 3.308487984
A33: 20.2020202 | B33: 3.005782609
A34: 18.77834467 | B34: 2.932704327
A35: 19.38214469 | B35: 2.964352266
A36: 17.95918367 | B36: 2.888101609
A37: 20.69049454 | B37: 3.029674394
A38: 21.97133586 | B38: 3.089738688
A39: 18.28571429 | B39: 2.906120115
A40: 22.64219297 | B40: 3.119815111
A41: 23.24380165 | B41: 3.146038501
A42: 24.77209671 | B42: 3.209717887
A43: 23.56663223 | B43: 3.159831823
A44: 18.64534404 | B44: 2.925596466
A45: 20.02884153 | B45: 2.997173311
A46: 20.06920415 | B46: 2.999186508
A47: 21.2244898 | B47: 3.055155694
A48: 20.07960128 | B48: 2.999704438
A49: 20.70081674 | B49: 3.030173156
A50: 19.95935549 | B50: 2.99369798
A51: 23.33546614 | B51: 3.149974355
A52: 22.65625 | B52: 3.120435752
A53: 22.94811574 | B53: 3.133235831
A54: 23.29122996 | B54: 3.148076893
A55: 24.8791787 | B55: 3.214031257
A56: 23.0400202 | B56: 3.137232713
A57: 17.30612245 | B57: 2.851060338
A58: 21.41094498 | B58: 3.063902239
A59: 27.6816609 | B59: 3.320770133
A60: 24.09972299 | B60: 3.182200346
A61: 23.56663223 | B61: 3.159831823
A62: 32.87197232 | B62: 3.492620389
A63: 23.53304271 | B63: 3.158405506
A64: 21.36686914 | B64: 3.061841551
A65: 20.76124567 | B65: 3.03308806
A66: 19.46740129 | B66: 2.968741338
A67: 20.2020202 | B67: =LN(A67) -> 3.005782609
A68: 17.68978885 | B68: 2.872987572
A69: 20.66115702 | B69: 3.028255465
A70: 20.51913409 | B70: 3.021357821
A71: 18.75 | B71: 2.931193752
A72: 18.46722068 | B72: 2.915997306
A73: 20.95717116 | B73: 3.042480887
A74: 24.65590962 | B74: 3.205016613
A75: 24.16326531 | B75: 3.184833517
A76: 21.6066482 | B76: 3.073001054
A77: 19.28414901 | B77: 2.959283464
A78: 27.75748722 | B78: 3.323505613
A79: 18.80920625 | B79: 2.934346444
A80: 17.22480372 | B80: 2.846350422
A81: 21.35991456 | B81: 3.061516014
A82: 22.30814991 | B82: 3.104952079
A83: 16.35930993 | B83: 2.79479715
A84: 20.90419501 | B84: 3.039949857
A85: 19.81405274 | B85: 2.98639142
A86: 20.57142857 | B86: 3.023903151
A87: 27.7488727 | B87: 3.323195216
A88: 20.0617284 | B88: 2.99881394

Sheet Лист1 (3)
A1: имт | B1: ln(ИМТ)
A2: 18.49112426 | B2: =LN(A2) -> 2.917290847 | F2: n | G2: =COUNT(A2:A172) -> 171 | H2: =COUNT(B2:B172) -> 171 | I2: или | K2: min | L2: =MIN(A2:A172) -> 15.61570494
A3: 17.89802289 | B3: =LN(A3) -> 2.884690254 | F3: x | G3: =AVERAGE(A2:A172) -> 21.93106695 | H3: =AVERAGE(B2:B172) -> 3.073304975 | I3: =AVERAGE(LN(A2:A172)) -> 3.073304975 | K3: max | L3: =MAX(A2:A172) -> 38.56829803
A4: 20.83070319 | B4: 3.036428013 | F4: s | G4: =STDEV(A2:A172) -> 4.019165398 | H4: =STDEV(B2:B172) -> 0.1664249974 | I4: =STDEV(LN(A2:A172)) -> 0.1664249974 | K4: n' | L4: =MIN(ROUND(SQRT(G2),0),20) -> 13
A5: 25.390625 | B5: 3.234380011 | F5: D+ | G5: =MAX(RANK(A2:A172,A2:A172,1)/G2-NORMDIST(A2:A172,G3,G4,1)) -> 0.1380061737 | H5: =MAX(RANK(B2:B172,B2:B172,1)/H2-NORMDIST(B2:B172,H3,H4,1)) -> 0.09710789173
A6: 26.5831758 | B6: 3.280278527 | F6: D- | G6: =MAX(NORMDIST(A2:A172,G3,G4,1)-(RANK(A2:A172,A2:A172,1)-1)/G2) -> 0.08919008724 | H6: =MAX(NORMDIST(B2:B172,H3,H4,1)-(RANK(B2:B172,B2:B172,1)-1)/H2) -> 0.05759672646 | K6: =10^-99 -> 1e-99
A7: 30.3871053 | B7: 3.414018351 | F7: D | G7: =MAX(G5:G6) -> 0.1380061737 | H7: =MAX(H5:H6) -> 0.09710789173 | K7: =L2 -> 15.61570494 | L7: =COUNTIFS($A$2:$A$172,">"&K6,$A$2:$A$172,"<="&K7) -> 1 | M7: =(LOGNORMDIST(K7,$H$3,$H$4)-LOGNORMDIST(K6,$H$3,$H$4))*$G$2 -> 4.345086316
A8: 22.20598977 | B8: 3.100362062 | F8: Dcrit(0,95) | G8: =1.36/SQRT(G2) -> 0.1040017994 | H8: =1.36/SQRT(H2) -> 0.1040017994 | K8: =K7+($L$3-$L$2)/$L$4 -> 17.38128902 | L8: =COUNTIFS($A$2:$A$172,">"&K7,$A$2:$A$172,"<="&K8) -> 9 | M8: =(LOGNORMDIST(K8,$H$3,$H$4)-LOGNORMDIST(K7,$H$3,$H$4))*$G$2 -> 11.93509742
A9: 20.01772999 | B9: 2.99661838 | G9: ="нормальность "&IF(G7>G8,"не ","")&"подтверждена" -> нормальность не подтверждена | H9: ="нормальность "&IF(H7>H8,"не ","")&"подтверждена" -> нормальность подтверждена | K9: =K8+($L$3-$L$2)/$L$4 -> 19.14687311 | L9: =COUNTIFS($A$2:$A$172,">"&K8,$A$2:$A$172,"<="&K9) -> 29 | M9: =(LOGNORMDIST(K9,$H$3,$H$4)-LOGNORMDIST(K8,$H$3,$H$4))*$G$2 -> 23.61271206
A10: 24.34380949 | B10: 3.192277587 | F10: p | G10: 0.002652 | H10: 0.074318 | K10: 20.91245719 | L10: =COUNTIFS($A$2:$A$172,">"&K9,$A$2:$A$172,"<="&K10) -> 46 | M10: =(LOGNORMDIST(K10,$H$3,$H$4)-LOGNORMDIST(K9,$H$3,$H$4))*$G$2 -> 32.18431939
A11: 19.59183673 | B11: 2.975112986 | K11: 22.67804127 | L11: =COUNTIFS($A$2:$A$172,">"&K10,$A$2:$A$172,"<="&K11) -> 34 | M11: =(LOGNORMDIST(K11,$H$3,$H$4)-LOGNORMDIST(K10,$H$3,$H$4))*$G$2 -> 32.86523407
A12: 19.10009183 | B12: 2.949693143 | K12: 24.44362536 | L12: =COUNTIFS($A$2:$A$172,">"&K11,$A$2:$A$172,"<="&K12) -> 20 | M12: =(LOGNORMDIST(K12,$H$3,$H$4)-LOGNORMDIST(K11,$H$3,$H$4))*$G$2 -> 26.759336
A13: 20.07960128 | B13: 2.999704438 | K13: 26.20920944 | L13: =COUNTIFS($A$2:$A$172,">"&K12,$A$2:$A$172,"<="&K13) -> 10 | M13: =(LOGNORMDIST(K13,$H$3,$H$4)-LOGNORMDIST(K12,$H$3,$H$4))*$G$2 -> 18.20930833
A14: 22.03856749 | B14: 3.092793986 | K14: 27.97479352 | L14: =COUNTIFS($A$2:$A$172,">"&K13,$A$2:$A$172,"<="&K14) -> 10 | M14: =(LOGNORMDIST(K14,$H$3,$H$4)-LOGNORMDIST(K13,$H$3,$H$4))*$G$2 -> 10.73625701
A15: 20.56932966 | B15: 3.023801115 | K15: 29.74037761 | L15: =COUNTIFS($A$2:$A$172,">"&K14,$A$2:$A$172,"<="&K15) -> 3 | M15: =(LOGNORMDIST(K15,$H$3,$H$4)-LOGNORMDIST(K14,$H$3,$H$4))*$G$2 -> 5.640496275
A16: 19.88385305 | B16: 2.989907998 | K16: 31.50596169 | L16: =COUNTIFS($A$2:$A$172,">"&K15,$A$2:$A$172,"<="&K16) -> 3 | M16: =(LOGNORMDIST(K16,$H$3,$H$4)-LOGNORMDIST(K15,$H$3,$H$4))*$G$2 -> 2.699270122
A17: 17.08984375 | B17: 2.838484354 | K17: 33.27154578 | L17: =COUNTIFS($A$2:$A$172,">"&K16,$A$2:$A$172,"<="&K17) -> 1 | M17: =(LOGNORMDIST(K17,$H$3,$H$4)-LOGNORMDIST(K16,$H$3,$H$4))*$G$2 -> 1.197385637
A18: 20.00656932 | B18: 2.996060686 | K18: 35.03712986 | L18: 1 | M18: 0.4993115304
A19: 23.16743024 | B19: 3.142747423 | K19: 36.80271394 | L19: 2 | M19: 0.1979645722
A20: 26.0261749 | B20: 3.259102758 | K20: 38.56829803 | L20: 2 | M20: 0.0753183506
A21: 21.60493827 | B21: 3.072921912
A22: 21.96712018 | B22: 3.089546798
A23: 25.76177285 | B23: 3.248891721
A24: 19.67516685 | B24: 2.979357275
A25: 19.77769867 | B25: 2.984554973
A26: 19.9932847 | B26: 2.995396452
A27: 18.6122449 | B27: 2.923819692
A28: 23.22543185 | B28: 3.145247879
A29: 20.83070319 | B29: 3.036428013
A30: 21.67125803 | B30: 3.075986868
A31: 27.58732606 | B31: 3.317356466
A32: 38.56829803 | B32: 3.652430644
A33: 22.03172568 | B33: 3.092483491
A34: 21.484375 | B34: 3.067325927
A35: 17.96875 | B35: 2.888634138
A36: 22.5710475 | B36: 3.116668001
A37: 26.36560303 | B37: 3.272060245
A38: 20.67901235 | B38: 3.02911929
A39: 17.1875 | B39: 2.844182375
A40: 19.921875 | B40: 2.991818374
A41: 36.24258369 | B41: 3.590234773
A42: 19.6554515 | B42: 2.97835473
A43: 25.60553633 | B43: 3.242808591
A44: 22.37567995 | B44: 3.107974653
A45: 21.67125803 | B45: 3.075986868
A46: 21.10726644 | B46: 3.049617362
A47: 16.52892562 | B47: 2.805111914
A48: 22.10028959 | B48: 3.095590712
A49: 20.98765432 | B49: 3.043934375
A50: 18.82711104 | B50: 2.935297908
A51: 27.81588173 | B51: 3.325607143
A52: 25.84776822 | B52: 3.252224261
A53: 18.80920625 | B53: 2.934346444
A54: 21.67125803 | B54: 3.075986868
A55: 32.60475788 | B55: 3.484458225
A56: 20.57613169 | B56: 3.024131748
A57: 27.06405159 | B57: 3.298206338
A58: 20.67901235 | B58: 3.02911929
A59: 24.77209671 | B59: 3.209717887
A60: 17.57706869 | B60: 2.866595137
A61: 22.49134948 | B61: 3.113130768
A62: 15.61570494 | B62: 2.748277135
A63: 19.10009183 | B63: 2.949693143
A64: 19.9099723 | B64: 2.991220727
A65: 19.36849691 | B65: 2.963647876
A66: 19.72103697 | B66: 2.981685932
A67: 20.90419501 | B67: =LN(A67) -> 3.039949857
A68: 22.75830678 | B68: 3.124930212
A69: 18.59012493 | B69: 2.922630522
A70: 19.33372992 | B70: 2.961851235
A71: 33.41240937 | B71: 3.508927369
A72: 17.63085399 | B72: 2.869650435
A73: 23.29122996 | B73: 3.148076893
A74: 18.78829923 | B74: 2.933234294
A75: 17.21108681 | B75: 2.845553758
A76: 23.14814815 | B76: 3.141914784
A77: 35.23545045 | B77: 3.562052691
A78: 20.22702572 | B78: 3.007019617
A79: 19.15708812 | B79: 2.952672784
A80: 37.63784862 | B80: 3.628010156
A81: 19.46740129 | B81: 2.968741338
A82: 26.75386445 | B82: 3.286678928
A83: 18.82711104 | B83: 2.935297908
A84: 18.90359168 | B84: 2.93935194
A85: 18.5178041 | B85: 2.918732653
A86: 17.05617651 | B86: 2.836512397
A87: 17.99307958 | B87: 2.889987216
A88: 18.90690102 | B88: 2.939526989
A89: 20.41522491 | B89: 3.016280942
A90: 19.49317739 | B90: 2.970064527
A91: 19.48696145 | B91: 2.969745598
A92: 19.46740129 | B92: 2.968741338
A93: 21.30394858 | B93: 3.058892435
A94: 20.54988662 | B94: 3.022855424
A95: 22.49134948 | B95: 3.113130768
A96: 20.43816558 | B96: 3.017404015
A97: 22.5710475 | B97: 3.116668001
A98: 20.65754 | B98: 3.028080386
A99: 19.140625 | B99: 2.95181304
A100: 22.73356401 | B100: 3.123842423
A101: 25.82644628 | B101: 3.251399017
A102: 20.0617284 | B102: 2.99881394
A103: 18.46722068 | B103: 2.915997306
A104: 22.72043837 | B104: 3.123264888
A105: 18.75 | B105: 2.931193752
A106: 19.23356075 | B106: 2.956656709
A107: 18.90359168 | B107: 2.93935194
A108: 24.03460984 | B108: 3.179494868
A109: 20.703125 | B109: 3.030284655
A110: 19.47714681 | B110: 2.96924182
A111: 22.4996371 | B111: 3.11349918
A112: 16.90102758 | B112: 2.827374424
A113: 18.42403628 | B113: 2.913656132
A114: 21.51385851 | B114: 3.068697309
A115: 22.03856749 | B115: 3.092793986
A116: 21.30394858 | B116: 3.058892435
A117: 22.32142857 | B117: 3.10554714
A118: 24.2322212 | B118: 3.187683202
A119: 22.79035793 | B119: 3.126337549
A120: 21.5450908 | B120: 3.070147985
A121: 22.59143813 | B121: 3.117570991
A122: 21.79820239 | B122: 3.081827507
A123: 28.55463173 | B123: 3.351819155
A124: 30.29920465 | B124: 3.411121463
A125: 22.86236854 | B125: 3.129492264
A126: 26.37023814 | B126: 3.272236031
A127: 21.9138057 | B127: 3.087116835
A128: 19.33372992 | B128: 2.961851235
A129: 22.18934911 | B129: 3.099612404
A130: 20.19557823 | B130: 3.005463681
A131: 23.30668005 | B131: =LN(A131) -> 3.148740017
A132: 30.36734694 | B132: 3.413367917
A133: 19.49317739 | B133: 2.970064527
A134: 22.30814991 | B134: 3.104952079
A135: 23.56663223 | B135: 3.159831823
A136: 23.62028791 | B136: 3.162106
A137: 25 | B137: 3.218875825
A138: 21.60493827 | B138: 3.072921912
A139: 24.48979592 | B139: 3.198256538
A140: 17.36044134 | B140: 2.854194132
A141: 22.53061224 | B141: 3.114874929
A142: 17.99307958 | B142: 2.889987216
A143: 19.84126984 | B143: 2.987764104
A144: 20.9572742 | B144: 3.042485803
A145: 22.89281998 | B145: 3.130823323
A146: 19.26530612 | B146: 2.958305868
A147: 18.75 | B147: 2.931193752
A148: 18.59012493 | B148: 2.922630522
A149: 23.50780533 | B149: 3.157332508
A150: 17.7154195 | B150: 2.874435419
A151: 29.33741144 | B151: 3.378863543
A152: 26.88172043 | B152: 3.291446518
A153: 20.30741221 | B153: 3.010985953
A154: 23.03004535 | B154: 3.136799683
A155: 18.16620425 | B155: 2.899562959
A156: 22.94811574 | B156: 3.133235831
A157: 22.23098713 | B157: 3.101487132
A158: 18.59012493 | B158: 2.922630522
A159: 19.60715661 | B159: 2.975894633
A160: 27.47252747 | B160: 3.313186504
A161: 29.3877551 | B161: 3.380578094
A162: 20.04744562 | B162: 2.998101745
A163: 21.84700852 | B163: 3.084064002
A164: 19.36983471 | B164: 2.963716944
A165: 26.31578947 | B165: 3.270169119
A166: 20.76124567 | B166: 3.03308806
A167: 25.0995016 | B167: 3.222847989
A168: 20.41522491 | B168: 3.016280942
A169: 17.87481247 | B169: 2.883392598
A170: 15.75575085 | B170: 2.757205432
A171: 17.30103806 | B171: 2.850766503
A172: 24.03460984 | B172: 3.179494868
